bitfinex-derivatives/quotes_ETHF0:USTF0_20250817
["timestamp","ask_amount","ask_price","bid_price","bid_amount"]
[1755432415034,1.4418,4547.7,4547.6,1.87318]
[1755432415237,0.5861,4547.7,4547.6,22.02818]
[1755432415435,0.8411,4547.9,4547.8,0.77346]
[1755432415628,1.4418,4547.9,4547.8,1.87316]
[1755432415932,3.52237,4548.1,4548.0,0.5696]
[1755432416133,4.37807,4548.1,4548.0,21.5886]
[1755432418033,4.37807,4548.1,4548.0,21.3351]
[1755432418334,4.37807,4548.1,4548.0,20.7246]
[1755432418524,0.4129,4547.5,4547.4,31.645]
[1755432418731,1.4418,4547.5,4547.4,21.3485]
[1755432419133,1.4418,4547.5,4547.4,21.5886]
[1755432419335,1.4418,4547.5,4547.4,22.0282]
[1755432420332,4.37807,4547.5,4547.4,22.0282]
[1755432420735,4.37807,4547.5,4547.4,21.5886]
[1755432421836,1.4418,4547.4,4547.3,0.1672]
[1755432422036,1.4418,4547.4,4547.3,20.6926]
[1755432422232,1.4418,4547.4,4547.3,21.1128]
[1755432422435,1.4418,4547.4,4547.3,20.3222]
[1755432422636,1.4418,4547.4,4547.3,20.8593]
[1755432422838,1.4418,4547.4,4547.3,21.5886]
[1755432423133,2.93627,4547.5,4547.4,0.4396]
[1755432423340,2.93627,4547.5,4547.4,0.5696]
[1755432423539,3.36327,4547.5,4547.4,1.4336]
[1755432423843,4.37807,4547.5,4547.4,1.4336]
[1755432424838,4.37807,4547.5,4547.4,21.5886]
[1755432427236,2.93627,4547.5,4547.4,21.5886]
[1755432428437,3.19127,4547.5,4547.4,21.5886]
[1755432428637,3.43217,4547.5,4547.4,21.5886]
[1755432429029,2.93627,4547.5,4547.4,21.5886]
[1755432429329,2.93627,4547.5,4547.4,21.6105]
[1755432429529,2.57157,4547.5,4547.4,21.5886]
[1755432432043,2.57157,4547.5,4547.4,0.6061]
[1755432432343,2.57157,4547.5,4547.4,21.5876]
[1755432437048,2.82657,4547.5,4547.4,21.5876]
[1755432437448,2.99857,4547.5,4547.4,21.5876]
[1755432437643,4.01937,4547.5,4547.4,20.7236]
[1755432437943,4.04127,4547.5,4547.4,20.154]
[1755432438547,3.54127,4547.5,4547.4,20.154]
[1755432439150,3.51937,4547.5,4547.4,20.3268]
[1755432439346,3.51937,4547.5,4547.4,20.967]
[1755432439556,3.51937,4547.5,4547.4,21.3623]
[1755432440253,5.07157,4547.5,4545.6,0.2551]
[1755432440445,5.07157,4547.5,4546.0,1.26294]
[1755432440446,3.2078,4546.1,4546.0,1.26294]
[1755432440743,3.2078,4546.1,4546.0,22.07324]
[1755432440950,3.2078,4546.6,4546.5,1.52118]
[1755432441154,2.5573,4546.6,4546.5,22.07318]
[1755432442143,2.5573,4546.6,4546.5,22.45508]
[1755432442345,2.5573,4546.6,4546.0,0.5134]
[1755432442550,3.2292,4546.6,4546.5,1.28349]
[1755432442851,3.2292,4546.6,4546.5,20.573]
[1755432443152,3.5975,4546.6,4546.5,21.4168]
[1755432443451,2.9708,4546.6,4546.5,22.0364]
[1755432444149,3.3391,4546.6,4546.5,22.0364]
[1755432445251,5.41067,4546.6,4546.5,22.0364]
[1755432447951,4.62887,4546.6,4546.5,22.0364]
[1755432448353,5.41067,4546.6,4546.5,22.0364]
[1755432450255,5.66907,4546.6,4546.5,21.64469]
[1755432450451,5.66907,4546.6,4546.5,21.81749]
[1755432450651,5.66907,4546.6,4546.5,22.05519]
[1755432451151,5.66907,4546.6,4546.5,22.43709]
[1755432451345,4.78537,4546.6,4546.5,22.43709]
[1755432452250,5.15367,4546.6,4546.5,22.43709]
[1755432452450,5.41067,4546.6,4546.5,22.43709]
[1755432452854,5.04237,4546.6,4546.5,22.43709]
[1755432453055,5.41067,4546.6,4546.5,22.43709]
[1755432453457,4.78537,4546.6,4546.5,22.43709]
[1755432454054,5.41067,4546.6,4546.5,22.43709]
[1755432454250,5.41067,4546.6,4542.8,6.2973169]
[1755432454251,0.022,4546.4,4544.3,4.19033311]
[1755432454452,0.8093,4544.4,4543.5,3.83158819]
[1755432454753,2.25558604,4546.6,4543.4,0.2551]
[1755432454754,0.7641,4543.5,4543.4,0.2551]
[1755432454958,1.44690713,4543.5,4543.4,21.7861]
[1755432455156,0.94690713,4543.5,4543.4,22.0444]
[1755432455557,3.01847713,4543.5,4543.4,22.0444]
[1755432456152,2.74917,4543.5,4543.4,22.0444]
[1755432457158,2.92687,4543.5,4543.4,21.6625]
[1755432457559,2.92687,4543.5,4543.4,22.0444]
[1755432457962,2.38567,4543.5,4543.4,22.0444]
[1755432458160,2.22807,4543.5,4543.4,22.0444]
[1755432458363,2.22807,4543.5,4543.4,20.581]
[1755432458554,2.22807,4543.5,4543.4,21.6285]
[1755432458555,2.89747,4543.5,4543.4,21.6285]
[1755432458754,2.89747,4543.5,4543.4,22.0444]
[1755432461464,3.15587,4543.5,4543.4,22.0444]
[1755432461762,2.89747,4543.5,4543.4,21.5049]
[1755432461962,2.89747,4543.5,4542.6,0.03534674]
[1755432461963,1.0091,4542.7,4542.6,0.03534674]
[1755432462159,4.46209565,4542.7,4542.6,0.03534674]
[1755432464160,0.022,4542.6,4540.6,1.10064]
[1755432464361,2.07157,4543.5,4541.6,1.4634]
[1755432464362,3.2078,4541.7,4541.6,1.4634]
[1755432467161,3.2078,4542.2,4542.1,1.90351]
[1755432467362,3.2078,4542.2,4542.1,22.52451]
[1755432467861,3.2078,4542.7,4542.6,1.87117]
[1755432468171,3.2078,4542.7,4542.6,22.49517]
[1755432468761,0.964,4543.3,4543.2,1.87111]
[1755432468962,0.3886,4543.2,4542.3,0.2376]
[1755432469164,1.3952,4542.9,4542.8,0.5758]
[1755432469364,1.3952,4542.9,4542.6,0.44007]
[1755432469560,1.3952,4542.9,4542.3,0.3826]
[1755432469561,0.964,4542.3,4542.2,1.0159]
[1755432469867,1.3952,4542.3,4542.2,1.4886]
[1755432470163,0.8198,4542.2,4541.9,20.631]
[1755432470363,1.1423,4542.0,4541.9,22.50223]
[1755432470667,0.964,4542.0,4541.9,22.50223]
[1755432470863,2.93627,4542.3,4542.2,0.4401]
[1755432471064,3.34217,4542.3,4542.2,0.9992]
[1755432471264,2.93627,4542.3,4542.2,1.8712]
[1755432472267,2.93627,4542.3,4542.2,1.8932]
[1755432472468,2.93627,4542.3,4542.2,1.8712]
[1755432472669,1.76217,4542.3,4542.2,1.8712]
[1755432477575,3.2078,4543.6,4543.0,0.44003]
[1755432477778,3.4607,4543.6,4543.5,0.43998]
[1755432477973,3.72143676,4543.6,4543.5,0.43998]
[1755432478173,3.4607,4543.6,4543.5,0.43998]
[1755432478377,4.6767,4543.6,4543.5,21.10598]
[1755432478672,0.2529,4543.6,4543.5,21.10598]
[1755432478873,3.2078,4544.4,4544.1,0.1579]
[1755432479076,0.252,4544.6,4544.1,21.0605]
[1755432479374,3.4473,4544.9,4544.7,0.1579]
[1755432479575,0.252,4544.9,4544.8,20.8259]
[1755432479779,0.252,4544.9,4544.8,21.0635]
[1755432480172,1.216,4544.9,4544.7,0.43986]
[1755432480371,0.5754,4544.9,4544.8,20.8249]
[1755432480572,3.2078,4545.4,4544.9,1.09961]
[1755432480775,3.7832,4545.4,4545.3,0.5977]
[1755432480973,1.4689,4545.7,4545.6,0.1579]
[1755432481472,4.6767,4546.5,4546.4,0.4397]
[1755432481673,4.1013,4546.5,4546.4,21.1007]
[1755432481868,0.8935,4546.5,4546.4,21.1007]
[1755432483068,3.82977,4546.5,4546.4,21.1007]
[1755432485374,4.40517,4546.5,4546.4,21.1007]
[1755432485775,1.4689,4545.5,4545.4,0.83279]
[1755432485981,1.4689,4545.5,4545.4,21.85439]
[1755432487279,0.5049,4545.5,4545.4,21.85439]
[1755432487483,0.5049,4545.5,4545.4,22.09199]
[1755432487977,0.964,4545.9,4545.8,0.43976]
[1755432488173,0.964,4545.9,4545.8,21.87536]
[1755432488382,0.964,4545.9,4545.8,21.49276]
[1755432488582,1.4689,4545.9,4545.8,21.09976]
[1755432489182,1.4689,4545.9,4545.8,21.08476]
[1755432490275,1.4689,4545.9,4545.8,0.43976]
[1755432490583,1.4689,4544.9,4544.8,1.21545]
[1755432490783,1.4689,4544.9,4544.8,21.85045]
[1755432491573,1.4689,4544.9,4544.8,0.83285]
[1755432491779,1.4689,4544.9,4544.8,21.46385]
[1755432493276,1.4689,4544.9,4544.8,21.22875]
[1755432493486,1.4689,4544.9,4544.8,21.07085]
[1755432493790,1.4689,4544.9,4544.8,21.06285]
[1755432494884,1.4689,4544.9,4544.5,0.3826]
[1755432494885,1.4689,4544.6,4544.5,0.43988]
[1755432495087,1.4689,4544.6,4544.5,21.05488]
[1755432495282,2.93627,4544.6,4544.5,21.83048]
[1755432495475,3.61067,4544.6,4544.5,21.83048]
[1755432495681,4.40517,4544.6,4544.5,21.83048]
[1755432495881,4.40517,4544.6,4544.5,1.21548]
[1755432496082,4.40517,4544.6,4544.5,21.82448]
[1755432502789,4.01657,4544.6,4544.5,22.07398]
[1755432502987,2.93627,4544.6,4544.5,22.09598]
[1755432503186,2.43627,4544.6,4544.5,22.09598]
[1755432503387,1.54877,4544.6,4544.5,25.09598]
[1755432503591,1.04877,4544.6,4544.5,25.09598]
[1755432503788,1.4343,4545.3,4545.2,0.61281]
[1755432503992,0.5694,4545.8,4545.7,0.43976]
[1755432504193,0.9395,4545.8,4545.7,20.568]
[1755432504691,1.4343,4545.8,4545.7,20.568]
[1755432505690,1.4343,4545.8,4545.7,20.741]
[1755432505883,1.4343,4545.8,4545.7,20.9905]
[1755432506080,3.2078,4546.1,4546.0,0.61273]
[1755432506081,3.7772,4546.1,4546.0,0.61273]
[1755432506283,3.7772,4546.1,4546.0,21.16773]
[1755432506688,4.6421,4546.1,4546.0,21.16773]
[1755432506889,0.5694,4545.8,4545.7,0.43975]
[1755432507090,0.4056,4545.2,4545.1,3.3808]
[1755432507287,1.4343,4545.2,4545.1,24.37762]
[1755432508096,0.4948,4545.2,4545.1,24.37762]
[1755432508291,1.4343,4545.2,4545.1,24.37762]
[1755432509291,1.4343,4545.2,4545.1,20.557]
[1755432509497,0.5694,4544.8,4544.7,0.61286]
[1755432509794,0.5694,4544.8,4544.7,21.15886]
[1755432509995,1.0642,4544.8,4544.7,21.15886]
[1755432510197,1.4343,4544.8,4544.7,21.15886]
[1755432510500,3.50587,4544.8,4544.7,21.15886]
[1755432510699,3.50587,4544.8,4544.7,21.40836]
[1755432511096,3.13577,4544.8,4544.7,21.40836]
[1755432511694,2.07157,4544.8,4544.7,21.40836]
[1755432512588,2.07157,4544.8,4544.7,24.22239295]
[1755432512790,1.57157,4544.8,4544.7,24.22239295]
[1755432514494,0.2389,4545.8,4545.6,0.173]
[1755432514795,0.2389,4545.8,4545.7,21.39226]
[1755432515192,0.4948,4545.8,4545.7,21.39226]
[1755432515505,1.0642,4545.8,4545.7,21.39226]
[1755432515904,4.272,4546.1,4546.0,0.61273]
[1755432516106,4.6421,4546.1,4546.0,21.13273]
[1755432516599,1.4343,4546.1,4546.0,21.13273]
[1755432517401,0.2559,4546.3,4546.1,1.53903]
[1755432517606,0.4948,4546.3,4546.2,0.4225]
[1755432517900,1.0146,4546.6,4546.5,0.43969]
[1755432518098,1.4343,4546.6,4546.5,21.36819]
[1755432518500,1.4343,4546.6,4546.5,21.11869]
[1755432520300,0.5694,4545.7,4545.6,0.173]
[1755432520499,0.5694,4545.7,4545.5,0.43978]
[1755432520706,0.5694,4545.7,4545.6,20.495]
[1755432521005,1.4343,4545.7,4545.6,20.495]
[1755432521196,1.4343,4545.7,4545.5,0.43978]
[1755432521197,1.4343,4545.7,4545.4,3.64759]
[1755432521397,1.4343,4545.5,4545.4,3.64759]
[1755432521602,1.4343,4545.5,4545.4,24.14659]
[1755432521909,0.5914,4545.5,4545.4,20.499]
[1755432522406,1.4563,4545.5,4545.4,20.499]
[1755432524507,1.4343,4544.9,4544.8,32.11085]
[1755432524708,1.4343,4544.9,4544.8,52.59785]
[1755432524901,1.4343,4544.9,4544.8,31.671]
[1755432525102,1.4343,4544.9,4544.8,52.154]
[1755432526307,1.4343,4544.9,4544.8,52.4035]
[1755432527703,1.4343,4544.9,4544.8,52.154]
[1755432529308,1.4078,4545.4,4545.3,0.1618]
[1755432529610,1.4078,4545.4,4545.3,20.6348]
[1755432532006,1.2516,4545.4,4545.3,20.8845]
[1755432532209,1.4078,4545.4,4545.3,20.8845]
[1755432532513,1.4078,4545.4,4545.3,20.6348]
[1755432532815,0.5515,4545.4,4544.8,34.8788]
[1755432533012,0.5515,4545.1,4545.0,0.1618]
[1755432533217,1.0394,4545.1,4545.0,0.4115]
[1755432533410,0.7005,4545.1,4545.0,1.1547]
[1755432533719,0.5909,4545.1,4545.0,1.1547]
[1755432533909,0.5909,4545.1,4545.0,1.59453]
[1755432534109,0.9593,4545.1,4545.0,1.59453]
[1755432535718,1.2007,4545.1,4545.0,1.59453]
[1755432536208,0.9593,4545.1,4545.0,1.59453]
[1755432539711,0.3904,4545.1,4545.0,1.59453]
[1755432540914,3.2078,4545.7,4545.3,1.2613]
[1755432541116,3.2078,4545.7,4545.6,1.4103]
[1755432541317,0.9199,4546.0,4545.9,1.25644]
[1755432541517,0.2342,4546.0,4545.9,22.27904]
[1755432543222,4.1277,4546.5,4546.4,1.85]
[1755432543515,4.6156,4546.5,4546.4,0.5781]
[1755432543824,4.6156,4546.5,4546.4,20.8365]
[1755432544027,4.6156,4546.5,4546.4,21.0031]
[1755432544322,4.6156,4546.5,4546.4,21.2402]
[1755432544617,1.1736,4546.4,4546.3,0.4397]
[1755432544813,1.4078,4546.4,4546.3,20.8637]
[1755432545013,1.4078,4546.4,4546.3,20.424]
[1755432546410,1.1664,4546.4,4546.3,20.424]
[1755432546615,1.1664,4546.4,4546.3,21.8343]
[1755432547016,3.2078,4546.5,4546.4,0.6063]
[1755432547222,1.1664,4546.8,4546.7,1.84997]
[1755432547521,1.1664,4546.8,4546.7,22.27997]
[1755432548725,4.0641,4547.0,4546.9,1.01775]
[1755432548916,4.6156,4547.0,4546.9,1.25485]
[1755432549318,4.6156,4547.0,4546.9,1.01775]
[1755432549517,4.6156,4547.0,4546.9,0.43965]
[1755432550618,3.2078,4547.0,4546.9,0.43965]
[1755432550822,3.2078,4547.0,4546.9,1.84995]
[1755432551120,3.7593,4547.0,4546.9,1.84995]
[1755432551420,4.6156,4547.0,4546.9,0.84995]
[1755432551728,4.6156,4547.0,4546.9,0.60625]
[1755432554137,4.3691,4547.0,4546.9,1.56295]
[1755432554535,4.6156,4547.0,4546.9,1.56295]
[1755432555335,4.6156,4547.0,4546.9,1.16405]
[1755432555530,4.6156,4547.0,4546.9,0.60625]
[1755432555733,4.6156,4547.0,4546.9,1.00515]
[1755432555923,4.6156,4547.0,4546.9,1.56295]
[1755432556129,4.6156,4547.0,4546.9,20.99525]
[1755432557030,4.6156,4547.0,4546.9,21.23235]
[1755432557230,4.6156,4547.0,4546.9,21.39415]
[1755432557938,4.6156,4547.0,4546.9,21.97265]
[1755432561633,4.3691,4547.0,4546.9,21.97265]
[1755432561832,4.6049,4547.0,4546.9,21.97265]
[1755432565836,4.3691,4547.0,4546.9,21.97265]
[1755432566139,4.0007,4547.0,4546.9,22.21565]
[1755432566343,3.8445,4547.0,4546.9,22.21565]
[1755432567033,4.2443,4547.0,4546.9,22.21565]
[1755432567237,3.6103,4547.0,4546.9,22.21565]
[1755432567743,4.6079,4547.0,4546.9,21.97265]
[1755432569841,4.6079,4547.0,4546.9,1.58365]
[1755432570042,4.6079,4547.0,4546.9,21.90565]
[1755432578848,4.6079,4547.0,4546.9,22.14865]
[1755432579652,4.6079,4547.0,4546.9,0.43965]
[1755432579851,4.6079,4547.0,4546.9,20.72665]
[1755432580252,4.6079,4547.0,4546.9,21.88305]
[1755432583452,4.6079,4547.0,4546.9,1.83905]
[1755432583654,4.6079,4547.0,4546.9,22.12005]
[1755432584252,4.2081,4547.0,4546.9,22.12005]
[1755432584652,3.2078,4547.0,4546.9,22.14195]
[1755432584957,3.2078,4547.5,4547.4,1.839]
[1755432585256,4.3668,4547.5,4547.4,22.12]
[1755432585452,4.6026,4547.5,4547.4,22.12]
[1755432587353,4.6026,4547.5,4547.4,21.877]
[1755432589357,3.4456,4547.5,4547.4,22.1202]
[1755432591950,0.7987,4547.8,4547.7,1.01777]
[1755432592154,1.1978,4547.8,4547.7,22.11337]
[1755432592548,0.0219,4548.0,4547.2,3.2078]
[1755432592757,0.5917,4546.8,4546.7,0.43967]
[1755432592954,0.5917,4546.8,4546.7,20.71767]
[1755432593253,0.7471,4546.8,4546.7,21.93297]
[1755432593454,1.1905,4546.8,4546.7,21.55147]
[1755432593854,1.1905,4546.8,4546.7,22.17667]
[1755432594763,0.9542,4546.8,4546.7,22.17667]
[1755432596555,1.1504,4546.8,4546.7,22.17667]
[1755432598455,0.9542,4546.8,4546.7,22.17667]
[1755432599560,1.1504,4546.8,4546.7,22.17667]
[1755432600352,0.9542,4546.8,4546.7,22.17667]
[1755432600557,0.7802,4546.8,4546.7,22.17667]
[1755432600757,3.2078,4547.7,4546.8,1.09915]
[1755432600959,0.6667,4547.6,4547.5,0.60848]
[1755432601162,0.4104,4547.6,4547.5,21.29478]
[1755432601460,4.584,4548.2,4548.1,0.76793]
[1755432601764,4.584,4548.2,4548.1,21.93183]
[1755432603562,4.584,4548.2,4548.1,22.17553]
[1755432605464,4.584,4548.2,4548.1,20.71553]
[1755432607763,1.3762,4548.1,4548.0,0.43954]
[1755432607964,1.3762,4548.1,4548.0,20.274]
[1755432608153,1.3762,4548.1,4547.7,0.43956]
[1755432608358,0.5917,4547.7,4547.6,0.43958]
[1755432608564,0.5917,4547.7,4547.6,20.71358]
[1755432608565,4.584,4547.7,4547.6,20.71358]
[1755432608965,4.584,4547.7,4547.6,0.43958]
[1755432609165,4.584,4547.7,4547.6,20.71358]
[1755432612162,4.584,4547.7,4547.6,21.54738]
[1755432612367,4.584,4547.7,4547.6,21.92888]
[1755432613763,4.584,4547.7,4547.6,21.4893]
[1755432614157,4.0373,4547.7,4547.6,21.4893]
[1755432614363,3.9687,4547.7,4547.6,21.733]
[1755432614863,4.584,4547.7,4547.6,21.733]
[1755432615069,4.3878,4547.7,4547.6,21.733]
[1755432615569,4.584,4547.7,4547.6,21.733]
[1755432616070,3.2078,4547.7,4547.6,21.733]
[1755432616959,0.3505,4548.1,4547.7,1.09893]
[1755432617165,0.1726,4548.1,4548.0,1.89854]
[1755432617472,3.2078,4548.3,4548.0,1.89854]
[1755432617473,3.2078,4548.3,4548.2,1.01032]
[1755432617768,3.9586,4548.3,4548.2,1.85562]
[1755432617972,4.5701,4548.3,4548.2,1.85562]
[1755432618372,4.5701,4548.3,4548.2,20.272]
[1755432619471,4.5701,4548.3,4548.2,21.6881]
[1755432624475,4.5701,4548.3,4548.2,21.6851]
[1755432629781,1.3623,4547.6,4547.5,0.1653]
[1755432629975,1.3623,4547.6,4547.5,20.6728]
[1755432630176,1.3623,4547.6,4547.5,21.2862]
[1755432630379,1.3623,4547.6,4547.5,1.0192]
[1755432630681,1.3623,4547.6,4547.5,21.4449]
[1755432631084,1.3623,4547.6,4547.5,21.6821]
[1755432633080,1.3623,4547.6,4547.5,21.4449]
[1755432633277,1.3623,4547.6,4546.8,0.4777]
[1755432633484,0.4153,4546.7,4546.6,1.1789]
[1755432633683,1.3623,4546.7,4546.6,1.4161]
[1755432633980,0.3135,4546.3,4546.2,1.1789]
[1755432634283,0.6496,4546.3,4546.2,21.6821]
[1755432634871,3.2078,4546.7,4546.6,1.438]
[1755432635071,2.5574,4546.7,4546.6,21.703]
[1755432635479,2.5574,4546.7,4546.6,22.14268]
[1755432636278,2.5574,4546.7,4546.6,22.12078]
[1755432636582,2.5574,4546.7,4546.6,21.6811]
[1755432636978,2.5574,4546.7,4546.6,21.6821]
[1755432640383,2.0574,4546.7,4546.6,21.6821]
[1755432640682,1.5574,4546.7,4546.6,21.6821]
[1755432641585,2.9618,4546.7,4546.6,21.6811]
[1755432642281,2.9618,4546.7,4546.6,21.4439]
[1755432642785,2.9618,4546.7,4546.6,0.5708]
[1755432642985,2.9618,4546.7,4546.6,20.5065]
[1755432643281,0.5754,4546.1,4546.0,4.3867]
[1755432643479,1.4044,4546.1,4546.0,24.8899]
[1755432645282,1.4044,4546.1,4546.0,24.1254]
[1755432645583,1.4044,4546.1,4546.0,24.8899]
[1755432646988,1.1934,4546.1,4546.0,24.8899]
[1755432647186,1.5574,4546.7,4546.6,1.61528]
[1755432647392,1.5574,4546.7,4546.6,22.12078]
[1755432649180,0.6278,4547.4,4547.2,0.43962]
[1755432649383,1.4099,4547.3,4547.2,1.90582]
[1755432649582,1.4099,4547.3,4547.2,22.17082]
[1755432649784,1.4099,4547.3,4547.2,21.7312]
[1755432651287,4.2352,4547.7,4547.6,1.90578]
[1755432651487,3.3712,4547.7,4547.6,22.16978]
[1755432652087,3.2078,4547.7,4547.6,22.16978]
[1755432652286,0.2438,4548.1,4548.0,1.03694]
[1755432652487,0.4072,4548.1,4548.0,22.16974]
[1755432652984,0.7912,4548.1,4548.0,1.90574]
[1755432653182,1.4099,4548.1,4548.0,21.93314]
[1755432653483,1.4099,4548.1,4548.0,21.54804]
[1755432653675,1.4099,4548.1,4548.0,1.28404]
[1755432653874,1.4099,4548.1,4548.0,21.54704]
[1755432654285,1.4099,4548.1,4548.0,22.16874]
[1755432655387,1.4099,4548.1,4548.0,21.54604]
[1755432656487,1.4099,4548.1,4548.0,21.93114]
[1755432657988,1.4099,4548.1,4548.0,1.66914]
[1755432658386,1.4099,4548.1,4548.0,21.92814]
[1755432659190,1.4099,4548.1,4548.0,22.16474]
[1755432660790,0.1634,4548.1,4548.0,22.16474]
[1755432661292,0.4072,4548.1,4548.0,22.16474]
[1755432661492,0.7912,4548.1,4548.0,22.16474]
[1755432663796,0.4072,4548.1,4548.0,22.16474]
[1755432664001,4.2352,4548.4,4548.3,1.90571]
[1755432664191,4.2352,4548.4,4548.3,22.16071]
[1755432664593,4.6177,4548.4,4548.3,22.41813819]
[1755432664792,4.4064,4548.4,4548.3,22.41813819]
[1755432664987,0.1634,4548.4,4548.3,22.16071]
[1755432665196,0.7912,4549.2,4549.1,1.90564]
[1755432665397,0.4072,4549.2,4549.1,22.16064]
[1755432666999,0.1634,4549.2,4549.1,22.16064]
[1755432667190,1.0274,4549.5,4549.4,1.90561]
[1755432667392,1.0274,4549.5,4549.4,22.15761]
[1755432667699,1.0274,4549.5,4549.4,21.7182]
[1755432667900,1.4099,4549.5,4549.4,21.7182]
[1755432668406,1.4099,4549.5,4549.4,21.0965]
[1755432668596,1.4099,4549.5,4549.4,21.4816]
[1755432669905,1.4099,4549.5,4549.4,20.252]
[1755432670198,1.4099,4549.5,4549.1,0.68653]
[1755432670403,0.5708,4549.3,4549.2,20.4971]
[1755432670602,1.4099,4549.3,4549.2,20.4971]
[1755432671202,1.4099,4549.3,4549.2,20.4961]
[1755432672300,1.4099,4549.3,4549.2,21.0935]
[1755432672498,1.4099,4549.3,4549.2,21.4786]
[1755432672701,1.4099,4549.3,4549.0,0.43944]
[1755432672902,1.4099,4549.2,4549.1,20.248]
[1755432673706,1.4099,4549.2,4549.1,20.4951]
[1755432673905,1.0259,4548.6,4548.5,1.4662]
[1755432674107,1.4099,4548.6,4548.5,21.7132]
[1755432675606,1.4099,4548.6,4548.5,21.4766]
[1755432675802,0.8391,4548.5,4548.0,0.6217]
[1755432676001,1.0259,4548.2,4548.1,21.0905]
[1755432676202,1.4099,4548.2,4548.1,21.4756]
[1755432676504,1.4099,4548.2,4548.1,21.7122]
[1755432676704,1.1986,4548.2,4548.1,21.7122]
[1755432678303,1.4098,4548.2,4548.1,21.4746]
[1755432678912,1.4098,4548.2,4548.1,21.721]
[1755432679209,0.3615,4548.1,4547.8,3.2078]
[1755432679411,3.2078,4548.8,4547.8,4.4198]
[1755432679412,1.3793,4547.9,4547.8,4.4198]
[1755432679602,1.3793,4547.9,4547.8,24.9102]
[1755432679807,1.3793,4547.9,4547.8,4.6662]
[1755432680111,1.3793,4547.9,4547.8,24.9102]
[1755432681211,1.3793,4547.9,4547.8,21.7024]
[1755432681606,1.3793,4547.9,4547.8,20.8233]
[1755432681914,1.3793,4547.9,4547.8,20.9224]
[1755432682309,1.3793,4547.9,4547.8,0.6784]
[1755432682510,1.3793,4547.5,4547.4,0.421]
[1755432682714,1.3793,4547.5,4547.4,20.8233]
[1755432682907,1.3793,4547.5,4547.4,21.456]
[1755432683415,1.3793,4547.5,4547.4,0.8367]
[1755432683717,1.3793,4547.5,4547.4,21.0797]
[1755432683917,1.3793,4547.5,4547.4,1.212]
[1755432684112,1.3793,4547.5,4547.4,21.455]
[1755432684916,1.3793,4547.5,4547.4,21.7014]
[1755432688719,1.3793,4547.5,4547.4,21.71552174]
[1755432694019,3.2078,4547.8,4547.4,21.71552174]
[1755432694020,0.9964,4547.7,4547.6,1.89797]
[1755432694218,1.2076,4547.7,4547.6,22.13897]
[1755432694620,0.9964,4547.7,4547.6,22.13897]
[1755432694822,0.9964,4547.7,4547.6,22.15309174]
[1755432695121,0.398,4547.7,4547.6,22.15309174]
[1755432695325,3.2078,4547.8,4547.6,22.15309174]
[1755432695527,3.2078,4547.8,4547.7,1.4584]
[1755432695725,3.6058,4548.3,4548.2,0.5793]
[1755432695928,3.2078,4548.3,4548.2,21.6984]
[1755432696824,3.2078,4548.3,4548.2,21.71252174]
[1755432697834,3.6058,4548.3,4548.2,21.71252174]
[1755432698135,0.7595,4548.6,4548.5,1.01879]
[1755432698323,0.7595,4548.6,4548.5,22.13789]
[1755432698625,1.3793,4548.6,4548.5,22.13789]
[1755432698922,0.1567,4548.6,4548.5,22.15201174]
[1755432699329,0.7595,4548.6,4548.5,22.15201174]
[1755432699630,1.3793,4548.6,4548.5,22.15201174]
[1755432699922,0.1567,4548.6,4548.5,22.15201174]
[1755432700426,0.398,4548.6,4548.5,22.15201174]
[1755432700629,0.7595,4548.6,4548.5,22.15201174]
[1755432701724,0.9964,4548.6,4548.5,22.15201174]
[1755432702031,1.3793,4548.6,4548.5,21.09082174]
[1755432702222,1.3793,4548.6,4548.5,0.01412174]
[1755432702422,1.3793,4548.6,4548.5,20.25112174]
[1755432702726,1.4012,4548.6,4548.5,0.01412174]
[1755432703228,1.58865186,4548.6,4548.5,0.01412174]
[1755432703427,1.56675186,4548.6,4548.5,0.01412174]
[1755432703927,1.56675186,4548.6,4548.5,0.17242174]
[1755432704121,1.56675186,4548.6,4548.5,0.01412174]
[1755432706229,1.56675186,4548.6,4548.5,0.27152174]
[1755432707035,1.56675186,4548.6,4548.5,0.85082174]
[1755432707228,1.56675186,4548.6,4548.5,1.22612174]
[1755432707429,1.56675186,4548.6,4548.5,0.69252174]
[1755432707627,1.56675186,4548.6,4548.5,0.01412174]
[1755432708127,2.2001324,4548.6,4548.5,0.01412174]
[1755432708529,1.3861324,4548.6,4547.9,20.232]
[1755432708729,1.4049,4548.0,4547.9,20.232]
[1755432710630,1.4049,4548.0,4547.9,20.4857]
[1755432710929,1.4049,4548.0,4547.9,21.4347]
[1755432711420,1.4049,4548.0,4547.9,1.4537]
[1755432711622,1.59247421,4548.0,4547.9,21.6847]
[1755432711930,1.59247421,4548.0,4547.9,21.4337]
[1755432712131,1.59247421,4548.0,4547.9,21.0568]
[1755432712322,1.59247421,4548.0,4547.5,0.69058]
[1755432712323,0.583,4547.9,4547.7,20.232]
[1755432712631,1.0331,4547.6,4547.5,21.4347]
[1755432712831,1.4049,4547.5,4547.4,0.8018]
[1755432713031,1.4049,4547.4,4547.3,21.4337]
[1755432713223,1.4049,4547.4,4547.3,0.1712]
[1755432713429,1.4049,4547.1,4546.9,0.3769]
[1755432713632,1.4049,4547.1,4547.0,20.231]
[1755432713633,3.7848,4547.1,4547.0,20.231]